bitfinex-derivatives/quotes_BNBF0:USTF0_20250710
["timestamp","ask_amount","ask_price","bid_price","bid_amount"]
[1752175612544,1.65590313,676.81,676.46,0.98348534]
[1752175612845,1.65590313,676.81,676.47,0.98348534]
[1752175613042,1.65590313,676.81,676.48,0.98348534]
[1752175613245,1.65590313,676.83,676.49,0.98348534]
[1752175613447,1.65590313,676.86,676.5,0.98348534]
[1752175613642,1.65590313,676.86,676.16,1.64192219]
[1752175613643,1.65590313,676.86,676.51,0.98348534]
[1752175613941,1.65590313,676.86,676.16,1.64192219]
[1752175613942,1.65590313,676.86,676.52,0.98348534]
[1752175614146,1.65590313,676.86,676.53,0.98348534]
[1752175614342,1.65590313,676.86,676.54,0.98348534]
[1752175614542,1.65590313,676.86,676.55,0.98348534]
[1752175614744,1.65590313,676.87,676.56,0.98348534]
[1752175614945,1.65590313,676.87,676.57,0.98348534]
[1752175615142,1.65590313,676.87,676.58,0.98348534]
[1752175615443,1.65590313,676.87,676.59,0.98348534]
[1752175615640,1.65590313,676.87,676.16,1.64192219]
[1752175615641,1.65590313,676.86,676.6,0.98348534]
[1752175615843,1.65590313,676.86,676.61,0.98348534]
[1752175616041,1.65590313,676.86,676.62,0.98348534]
[1752175616246,1.65590313,676.86,676.63,0.98348534]
[1752175616545,1.65590313,676.86,676.64,0.98348534]
[1752175616742,1.65590313,676.86,676.65,0.98348534]
[1752175616949,1.65590313,676.86,676.66,0.98348534]
[1752175617146,1.65590313,676.86,676.67,0.98348534]
[1752175617343,1.65590313,676.87,676.68,0.98348534]
[1752175617649,1.65590313,676.87,676.69,0.98348534]
[1752175617848,1.65590313,676.87,676.7,0.98348534]
[1752175618145,1.65590313,676.87,676.71,0.98348534]
[1752175618347,1.65590313,676.87,676.72,0.98348534]
[1752175618649,1.65590313,676.87,676.73,0.98348534]
[1752175618846,1.65590313,676.87,676.74,0.98348534]
[1752175619050,1.65590313,676.87,676.75,0.98348534]
[1752175619248,1.65590313,676.88,676.76,0.98348534]
[1752175619449,1.65590313,676.88,676.77,0.98348534]
[1752175619649,1.65590313,676.88,676.78,0.98348534]
[1752175619849,1.65590313,676.88,676.79,0.98348534]
[1752175620048,1.65590313,676.88,676.8,0.98348534]
[1752175620249,1.65590313,677.01,676.81,0.98348534]
[1752175620448,1.65590313,677.01,676.82,0.98348534]
[1752175620648,1.65590313,677.01,676.14,1.58]
[1752175620852,1.65590313,677.01,676.15,0.98387792]
[1752175621051,1.65590313,676.99,676.16,0.98387792]
[1752175621254,1.65590313,676.91,676.17,0.98387792]
[1752175621455,1.65590313,676.91,676.18,0.98387792]
[1752175621655,1.65590313,676.91,676.19,0.98387792]
[1752175621855,1.65590313,676.91,676.2,0.98387792]
[1752175622056,1.65590313,676.91,676.21,0.98387792]
[1752175622255,1.65590313,676.91,676.22,0.98387792]
[1752175622451,1.65590313,676.91,676.23,0.98387792]
[1752175622752,1.65590313,676.91,676.24,0.98387792]
[1752175622955,1.65590313,676.91,676.25,0.98411326]
[1752175623155,1.65590313,676.91,676.26,0.98411326]
[1752175623454,0.2570789,677.25,676.27,0.98411326]
[1752175623455,1.65590313,676.87,676.27,0.98411326]
[1752175623653,1.65590313,676.87,676.28,0.98411326]
[1752175623853,1.65590313,676.87,676.29,0.98411326]
[1752175624059,1.65590313,676.87,676.3,0.98411326]
[1752175624259,1.65590313,676.87,676.31,0.98411326]
[1752175624455,1.65590313,676.87,676.32,0.98411326]
[1752175624656,1.65590313,676.86,676.33,0.98411326]
[1752175624856,1.65590313,676.86,676.34,0.98411326]
[1752175625058,2.21315372,677.14,676.35,0.98411326]
[1752175625059,1.65590313,676.87,676.35,0.98411326]
[1752175625560,1.65590313,676.87,676.36,0.98423703]
[1752175625857,1.65590313,676.83,676.36,0.98423703]
[1752175626361,1.65590313,676.8,676.36,0.98423703]
[1752175626558,1.65590313,676.8,676.14,1.58]
[1752175627059,1.65590313,676.77,676.14,1.58]
[1752175627660,1.65590313,676.71,676.15,0.98397004]
[1752175627856,1.65590313,676.71,676.16,0.98397004]
[1752175628159,1.65590313,676.69,676.16,0.98397004]
[1752175628357,1.65590313,676.69,676.14,1.58]
[1752175628562,1.65590313,676.69,676.15,0.98404837]
[1752175628756,1.65590313,676.69,676.14,1.58]
[1752175628757,1.65590313,676.69,676.16,0.98404837]
[1752175628955,1.65590313,676.69,676.17,0.98404837]
[1752175629160,1.65590313,676.69,676.14,1.58]
[1752175629161,1.65590313,676.69,676.18,0.98404837]
[1752175629369,1.65590313,676.68,676.19,0.98404837]
[1752175629566,1.65590313,676.68,676.2,0.98404837]
[1752175629770,1.65590313,676.68,676.21,0.98404837]
[1752175629968,1.65590313,676.68,676.22,0.98404837]
[1752175630168,1.65590313,676.69,676.23,0.98404837]
[1752175630371,1.65590313,676.68,676.24,0.98404837]
[1752175630670,1.65590313,676.68,676.25,0.98404837]
[1752175630869,1.65590313,676.68,676.26,0.98404837]
[1752175631065,1.65590313,676.68,676.27,0.98404837]
[1752175631271,1.65590313,676.68,676.28,0.98404837]
[1752175631471,1.65590313,676.68,676.29,0.98404837]
[1752175631671,1.65590313,676.68,676.14,1.58]
[1752175631672,1.65590313,676.68,676.3,0.98404837]
[1752175631872,1.65590313,676.68,676.31,0.98404837]
[1752175632068,1.65590313,676.68,676.32,0.98404837]
[1752175632268,1.65590313,676.68,676.33,0.98404837]
[1752175632466,1.65590313,676.68,676.34,0.98404837]
[1752175632669,1.65590313,676.68,676.35,0.98404837]
[1752175632869,1.65590313,676.68,676.36,0.98404837]
[1752175633072,1.65590313,676.68,676.37,0.98404837]
[1752175633273,1.65590313,676.68,676.38,0.98404837]
[1752175633471,1.65590313,676.68,676.39,0.98404837]
[1752175633671,1.65590313,676.68,676.4,0.98404837]
[1752175633874,1.65590313,676.68,676.41,0.98404837]
[1752175634071,1.65590313,676.68,676.42,0.98404837]
[1752175634276,1.65590313,676.68,676.43,0.98404837]
[1752175634470,1.65590313,676.68,676.44,0.98404837]
[1752175634674,1.65590313,676.68,676.45,0.98404837]
[1752175634872,1.65590313,676.68,676.46,0.98404837]
[1752175635173,1.65590313,676.67,676.47,0.98404837]
[1752175635376,1.65590313,676.68,676.48,0.98404837]
[1752175635572,2.21315372,676.82,676.1,0.257191]
[1752175635573,1.65590313,676.69,676.49,0.98404837]
[1752175635776,1.65590313,676.69,676.5,0.9847028]
[1752175635978,1.65590313,676.69,676.51,0.9847028]
[1752175636273,1.65590313,676.68,676.52,0.9847028]
[1752175636476,1.65590313,676.68,676.53,0.9847028]
[1752175636777,1.65590313,676.67,676.54,0.98464435]
[1752175636973,1.65590313,676.66,676.49,1.505]
[1752175637173,1.65590313,676.57,676.5,0.9846623]
[1752175637378,1.65590313,676.57,676.51,0.9846623]
[1752175637574,1.65590313,676.58,676.52,0.9846623]
[1752175637777,1.65590313,676.58,676.53,0.9846623]
[1752175638073,1.65590313,676.58,676.49,1.505]
[1752175638273,1.65590313,676.58,676.5,0.98461783]
[1752175638579,1.65590313,676.58,676.51,0.98461783]
[1752175638771,1.65590313,676.58,676.52,0.98461783]
[1752175638975,1.65590313,676.58,676.53,0.98461783]
[1752175639173,1.65590313,676.58,676.49,1.505]
[1752175639379,1.65590313,676.58,676.5,0.98454654]
[1752175639574,1.65590313,676.58,676.51,0.98454654]
[1752175639775,1.65590313,676.58,676.52,0.98454654]
[1752175639973,1.65590313,676.58,676.53,0.98454654]
[1752175640178,1.65590313,676.58,676.49,1.505]
[1752175640379,1.65590313,676.58,676.5,0.98449223]
[1752175640582,1.65590313,676.58,676.51,0.98449223]
[1752175640776,1.65590313,676.58,676.52,0.98449223]
[1752175640974,1.65590313,676.58,676.53,0.98449223]
[1752175641175,1.65590313,676.58,676.49,1.505]
[1752175641376,1.65590313,676.58,676.5,0.98444916]
[1752175641680,1.65590313,676.59,676.51,0.98444916]
[1752175641876,1.65590313,676.59,676.52,0.98444916]
[1752175642081,1.65590313,676.59,676.53,0.98444916]
[1752175642280,1.65590313,676.59,676.49,1.505]
[1752175642481,1.65590313,676.59,676.5,0.98441053]
[1752175642680,1.65590313,676.59,676.51,0.98441053]
[1752175642880,1.65590313,676.59,676.52,0.98441053]
[1752175643081,1.65590313,676.59,676.53,0.98441053]
[1752175643281,1.65590313,676.59,676.49,1.505]
[1752175643580,1.65590313,676.59,676.5,0.98436151]
[1752175643776,1.65590313,676.59,676.51,0.98436151]
[1752175643981,1.65590313,676.59,676.52,0.98436151]
[1752175644181,1.65590313,676.59,676.53,0.98436151]
[1752175644383,1.65590313,676.59,676.49,1.505]
[1752175644579,1.65590313,676.59,676.5,0.9843294]
[1752175644877,1.65590313,676.59,676.51,0.9843294]
[1752175645078,1.65590313,676.59,676.52,0.9843294]
[1752175645278,1.65590313,676.58,676.49,1.505]
[1752175645483,1.65590313,676.58,676.5,0.98431164]
[1752175645679,1.65590313,676.58,676.51,0.98431164]
[1752175645883,1.65590313,676.58,676.49,1.505]
[1752175646183,1.65590313,676.58,676.5,0.98432091]
[1752175646384,1.65590313,676.58,676.51,0.98432091]
[1752175646580,1.65590313,676.58,676.49,1.505]
[1752175646880,1.65590313,676.58,676.5,0.98428596]
[1752175647081,1.65590313,676.59,676.51,0.98428596]
[1752175647381,1.65590313,676.57,676.49,1.505]
[1752175647579,1.65590313,676.57,676.5,0.98429533]
[1752175647783,1.65590313,676.57,676.49,1.505]
[1752175647982,1.65590313,676.61,676.49,1.505]
[1752175649286,1.65590313,676.54,676.49,1.505]
[1752175651183,1.65590313,676.55,676.49,1.505]
[1752175653184,1.65590313,676.56,676.49,1.505]
[1752175653586,1.65590313,676.55,676.49,1.505]
[1752175654282,1.65590313,676.56,676.49,1.505]
[1752175657284,1.65590313,676.57,676.49,1.505]
[1752175657789,1.65590313,676.55,676.49,1.505]
[1752175659386,1.65590313,676.56,676.49,1.505]
[1752175659887,1.65590313,676.55,676.49,1.505]
[1752175660288,1.65590313,676.56,676.49,1.505]
[1752175660886,1.65590313,676.55,676.49,1.505]
[1752175664392,1.65590313,676.56,676.49,1.505]
[1752175664594,1.65590313,676.57,676.49,1.505]
[1752175667195,1.65590313,676.56,676.49,1.505]
[1752175668091,1.65590313,676.57,676.49,1.505]
[1752175669997,1.65590313,676.56,676.1,0.257191]
[1752175670196,1.65590313,676.56,676.11,0.98363835]
[1752175670491,1.65590313,676.56,676.12,0.98363835]
[1752175670792,1.65590313,676.56,676.13,0.98363835]
[1752175670991,1.65590313,676.56,676.14,0.98363835]
[1752175671192,1.65590313,676.56,676.15,0.98363835]
[1752175671492,1.65590313,676.56,676.16,0.98363835]
[1752175671795,1.65590313,676.56,676.17,0.98363835]
[1752175671995,1.65590313,676.56,676.18,0.98363835]
[1752175672292,1.65590313,676.56,676.19,0.98363835]
[1752175672492,1.65590313,676.56,676.2,0.98363835]
[1752175672696,1.65590313,676.56,676.21,0.98363835]
[1752175672894,1.65590313,676.56,676.22,0.98363835]
[1752175673094,1.65590313,676.56,676.23,0.98363835]
[1752175673294,2.21315372,676.69,676.1,0.257191]
[1752175673295,1.65590313,676.55,676.24,0.98363835]
[1752175673493,1.65590313,676.55,676.25,0.98363835]
[1752175673793,1.65590313,676.55,676.26,0.98363835]
[1752175674093,1.65590313,676.55,676.27,0.98363835]
[1752175674294,1.65590313,676.55,676.28,0.98363835]
[1752175674498,1.65590313,676.54,676.29,0.98363835]
[1752175674699,1.65590313,676.54,676.3,0.98363835]
[1752175674995,1.65590313,676.54,676.31,0.98363835]
[1752175675192,1.65590313,676.54,676.32,0.98363835]
[1752175675395,1.65590313,676.53,676.33,0.98363835]
[1752175675599,1.65590313,676.53,676.24,1.208]
[1752175675600,1.65590313,676.53,676.34,0.98363835]
[1752175675801,1.65590313,676.53,676.24,1.208]
[1752175675802,1.65590313,676.54,676.35,0.98363835]
[1752175676097,1.65590313,676.54,676.36,0.98379722]
[1752175676396,1.65590313,676.53,676.37,0.98379722]
[1752175676600,1.65590313,676.53,676.38,0.98379722]
[1752175676800,1.65590313,676.53,676.39,0.98379722]
[1752175677000,1.65590313,676.53,676.4,0.98379722]
[1752175677201,1.65590313,676.53,676.41,0.98379722]
[1752175677401,1.65590313,676.52,676.24,1.208]
[1752175677602,1.65590313,676.52,676.25,0.98409594]
[1752175677798,1.65590313,676.52,676.26,0.98409594]
[1752175677997,1.65590313,676.52,676.27,0.98409594]
[1752175678198,1.65590313,676.51,676.28,0.98409594]
[1752175678398,1.65590313,676.55,676.29,0.98409594]
[1752175678599,1.65590313,676.55,676.3,0.98409594]
[1752175678801,1.65590313,676.55,676.31,0.98409594]
[1752175679001,1.65590313,676.55,676.32,0.98409594]
[1752175679304,1.65590313,676.54,676.33,0.98409594]
[1752175679501,1.65590313,676.54,676.34,0.98409594]
[1752175679700,1.65590313,676.54,676.35,0.98409594]
[1752175679904,1.65590313,676.54,676.36,0.98409594]
[1752175680100,1.65590313,676.56,676.37,0.98409594]
[1752175680305,1.65590313,676.6,676.38,0.98409594]
[1752175680505,1.65590313,676.6,676.39,0.98409594]
[1752175680705,1.65590313,676.6,676.4,0.98409594]
[1752175680905,1.65590313,676.6,676.41,0.98409594]
[1752175681109,1.65590313,676.6,676.42,0.98439543]
[1752175681406,1.65590313,676.6,676.43,0.98439543]
[1752175681606,1.65590313,676.6,676.44,0.98439543]
[1752175681803,1.65590313,676.6,676.45,0.98439543]
[1752175682003,1.65590313,676.6,676.46,0.98439543]
[1752175682203,1.65590313,676.6,676.47,0.98439543]
[1752175682403,1.65590313,676.59,676.48,0.98439543]
[1752175682603,1.65590313,676.59,676.49,0.98439543]
[1752175682806,1.65590313,676.59,676.5,0.98439543]
[1752175683007,1.65590313,676.59,676.51,0.98439543]
[1752175683207,1.65590313,676.58,676.52,0.98439543]
[1752175683408,1.65590313,676.58,676.53,0.98439543]
[1752175683604,1.65590313,676.58,676.24,1.208]
[1752175683807,1.65590313,676.58,676.25,0.9850058]
[1752175684008,1.65590313,676.58,676.26,0.9850058]
[1752175684207,1.65590313,676.58,676.27,0.9850058]
[1752175684506,1.65590313,676.58,676.28,0.9850058]
[1752175684710,1.65590313,676.59,676.29,0.9850058]
[1752175685002,1.65590313,676.59,676.3,0.9850058]
[1752175685204,1.65590313,676.59,676.31,0.9850058]
[1752175685405,1.65590313,676.59,676.32,0.9850058]
[1752175685607,1.65590313,676.59,676.33,0.9850058]
[1752175685804,0.2571986,676.97,676.34,0.9850058]
[1752175685805,1.65590313,676.62,676.34,0.9850058]
[1752175686004,1.65590313,676.62,676.35,0.9850058]
[1752175686208,1.65590313,676.62,676.36,0.9850058]
[1752175686409,1.65590313,676.62,676.37,0.9850058]
[1752175686610,1.65590313,676.62,676.38,0.9850058]
[1752175686810,1.65590313,676.62,676.39,0.9850058]
[1752175687010,1.65590313,676.62,676.4,0.9850058]
[1752175687211,1.65590313,676.61,676.41,0.9850058]
[1752175687506,0.2571986,676.97,676.24,1.208]
[1752175687507,1.65590313,676.62,676.42,0.9850058]
[1752175687711,1.65590313,676.62,676.43,0.9850058]
[1752175687911,1.65590313,676.62,676.44,0.9850058]
[1752175688208,1.65590313,676.62,676.24,1.208]
[1752175688209,1.65590313,676.6,676.45,0.9850058]
[1752175688511,1.65590313,676.6,676.46,0.9850058]
[1752175688712,1.65590313,676.6,676.47,0.9850058]
[1752175688914,1.65590313,676.61,676.48,0.9850058]
[1752175689111,1.65590313,676.61,676.49,0.9850058]
[1752175689310,1.65590313,676.62,676.5,0.9850058]
[1752175689515,1.65590313,676.62,676.51,0.9850058]
[1752175689815,1.65590313,676.62,676.52,0.9850058]
[1752175690016,1.65590313,676.62,676.53,0.9850058]
[1752175690217,1.65590313,676.71,676.54,0.9850058]
[1752175690414,1.65590313,676.71,676.55,0.9850058]
[1752175690618,1.65805013,676.71,676.56,0.9850058]
[1752175690815,1.65805013,676.74,676.57,0.9850058]
[1752175691114,1.65805013,676.74,676.58,0.9850058]
[1752175691314,1.65805013,676.74,676.59,0.9850058]
[1752175691519,1.65805013,676.74,676.6,0.9850058]
[1752175691820,1.65805013,676.74,676.61,0.9850058]
[1752175692014,1.65805013,676.74,676.62,0.9850058]
[1752175692314,1.65805013,676.74,676.63,0.9850058]
[1752175692519,1.65805013,676.74,676.64,0.9850058]
[1752175692814,1.65805013,676.74,676.65,0.98524446]
[1752175693018,1.65805013,676.74,676.66,0.98524446]
[1752175693220,1.65805013,676.74,676.67,0.98524446]
[1752175693420,1.65805013,676.74,676.68,0.98524446]
[1752175693721,1.65805013,676.74,676.69,0.98524446]
[1752175693923,1.65805013,676.74,676.7,0.98524446]
[1752175694122,1.65805013,676.74,676.71,0.98524446]
[1752175694322,1.65805013,676.73,676.72,0.98524446]
[1752175694521,1.65805013,676.74,676.72,0.98524446]
[1752175694719,1.65805013,676.74,676.73,0.98524446]
[1752175696124,0.2571986,676.97,676.73,0.98524446]
[1752175696320,1.6584427,676.74,676.24,1.208]
[1752175696525,1.6584427,676.74,676.25,0.98531024]
[1752175696825,1.6584427,676.74,676.26,0.98531024]
[1752175697024,1.6584427,676.74,676.27,0.98531024]
[1752175697225,1.6584427,676.74,676.28,0.98531024]
[1752175697423,1.6584427,676.74,676.29,0.98531024]
[1752175697627,1.6584427,676.74,676.3,0.98531024]
[1752175697822,1.6584427,676.74,676.31,0.98531024]
[1752175698025,1.6584427,676.73,676.32,0.98531024]
[1752175698223,1.6584427,676.74,676.33,0.98531024]
[1752175698522,1.6584427,676.74,676.34,0.98531024]
[1752175698726,1.6584427,676.74,676.35,0.98531024]
[1752175699022,1.6584427,676.73,676.36,0.98531024]
[1752175699227,1.6584427,676.73,676.37,0.98531024]
[1752175699427,1.6584427,676.73,676.38,0.98531024]
[1752175699627,1.6584427,676.73,676.39,0.98531024]
[1752175699827,1.6584427,676.73,676.4,0.98531024]
[1752175700026,1.6584427,676.73,676.41,0.98531024]
[1752175700227,1.6584427,676.68,676.42,0.98531024]
[1752175700427,1.6584427,676.68,676.43,0.98531024]
[1752175700628,1.6584427,676.68,676.44,0.98531024]
[1752175700922,1.6584427,676.68,676.45,0.98531024]
[1752175701127,1.6584427,676.68,676.46,0.98531024]
[1752175701324,1.6584427,676.68,676.47,0.98531024]
[1752175701524,1.6584427,676.67,676.48,0.98531024]
[1752175701827,1.6584427,676.67,676.49,0.98536236]
[1752175702028,1.6584427,676.67,676.5,0.98536236]
[1752175702226,1.6584427,676.64,676.51,0.98536236]
[1752175702424,1.6584427,676.64,676.52,0.98536236]
[1752175702623,1.6584427,676.64,676.53,0.98536236]
[1752175702822,1.6584427,676.63,676.54,0.98536236]
[1752175703026,1.6584427,676.63,676.55,0.98536236]
[1752175703230,1.6584427,676.64,676.56,0.98536236]
[1752175703430,1.6584427,676.59,676.57,0.98536236]
[1752175703634,1.6584427,676.59,676.58,0.98536236]
[1752175703931,1.6584427,676.59,676.24,1.208]
[1752175704129,1.6584427,676.59,676.25,0.9854644]
[1752175704331,1.6584427,676.57,676.26,0.9854644]
[1752175704529,1.6584427,676.57,676.27,0.9854644]
[1752175704734,1.65802414,676.57,676.28,0.9854644]
[1752175705029,1.65802414,676.57,676.29,0.9854644]
[1752175705229,1.65802414,676.57,676.3,0.9854644]
[1752175705432,1.65802414,676.57,676.31,0.9854644]
[1752175705631,1.65802414,676.57,676.32,0.9854644]
[1752175705930,1.65802414,676.57,676.33,0.9854644]
[1752175706130,1.65802414,676.55,676.34,0.9854644]
[1752175706338,1.65802414,676.55,676.35,0.9854644]
[1752175706532,1.65802414,676.53,676.36,0.9854644]
[1752175706832,1.65802414,676.53,676.37,0.9854644]
[1752175707029,1.65802414,676.53,676.38,0.9854644]
[1752175707233,1.65802414,676.53,676.39,0.9854644]
[1752175707533,1.65802414,676.53,676.4,0.9854644]
[1752175707831,1.65802414,676.53,676.41,0.9854644]
[1752175708029,1.65802414,676.53,676.42,0.9854644]
[1752175708228,1.65802414,676.53,676.43,0.9854644]
[1752175708532,1.65802414,676.53,676.24,1.208]
[1752175708533,1.65802414,676.53,676.44,0.9854644]
[1752175708734,1.65802414,676.53,676.45,0.9854644]
[1752175708934,1.65802414,676.53,676.46,0.9854644]
[1752175709134,1.65802414,676.53,676.47,0.9854644]
[1752175709331,1.65802414,676.52,676.48,0.9854644]
[1752175709532,1.65802414,676.53,676.49,0.9854644]
[1752175709731,1.65802414,676.53,676.5,0.9854644]
[1752175710034,1.65802414,676.53,676.51,0.9854644]
[1752175710231,1.65802414,676.53,676.24,1.208]
[1752175710434,1.65802414,676.53,676.25,0.98571322]
[1752175710635,1.65802414,676.53,676.26,0.98571322]
[1752175710838,1.65802414,676.53,676.27,0.98571322]
[1752175711036,1.65802414,676.53,676.28,0.98571322]
[1752175711340,1.65802414,676.53,676.29,0.98571322]
[1752175711536,1.65802414,676.54,676.3,0.98571322]
[1752175711740,1.65802414,676.54,676.31,0.98571322]
[1752175712041,1.65802414,676.53,676.32,0.98571322]
[1752175712240,1.65802414,676.53,676.33,0.98571322]
[1752175712438,1.65802414,676.53,676.34,0.98571322]
[1752175712641,1.65802414,676.51,676.35,0.98571322]
[1752175712836,1.65802414,676.51,676.36,0.98571322]
[1752175713037,1.65802414,676.51,676.37,0.98571322]
[1752175713239,1.65802414,676.51,676.38,0.98571322]
[1752175713440,1.65802414,676.51,676.39,0.98571322]
[1752175713737,1.65802414,676.51,676.4,0.98571322]
[1752175713939,1.65802414,676.51,676.41,0.98571322]
[1752175714139,1.65802414,676.51,676.42,0.98571322]
[1752175714339,1.65802414,676.51,676.43,0.98571322]
[1752175714541,1.65802414,676.51,676.44,0.98571322]
[1752175714739,1.65802414,676.51,676.45,0.98571322]
[1752175714943,1.65802414,676.51,676.24,1.208]
[1752175714944,1.65802414,676.51,676.46,0.98571322]
[1752175715243,1.65802414,676.51,676.47,0.98571322]
[1752175715537,1.65802414,676.51,676.48,0.98571322]
[1752175715742,1.65802414,676.51,676.49,0.98571322]
[1752175715943,1.65802414,676.51,676.5,0.98571322]
[1752175718245,1.65802414,676.52,676.5,0.98571322]
[1752175718441,1.65802414,676.52,676.51,0.98571322]
[1752175719346,2.21315372,676.65,676.51,0.98571322]
[1752175719644,2.21315372,676.65,676.24,1.208]
[1752175719842,1.65856371,676.51,676.25,0.98563723]
[1752175720044,1.65856371,676.51,676.26,0.98563723]
[1752175720243,1.65856371,676.51,676.27,0.98563723]
[1752175720547,1.65856371,676.51,676.28,0.98563723]
[1752175720748,1.65856371,676.51,676.29,0.98563723]
[1752175721049,1.65856371,676.51,676.3,0.98563723]
[1752175721247,1.65856371,676.51,676.31,0.98563723]
[1752175721448,1.65856371,676.51,676.32,0.98563723]
[1752175721745,1.65856371,676.51,676.33,0.98563723]
[1752175721947,1.65856371,676.51,676.34,0.98563723]
[1752175722144,1.65856371,676.51,676.35,0.98563723]
[1752175722448,1.65856371,676.51,676.36,0.98563723]
[1752175722744,1.65856371,676.51,676.37,0.98563723]
[1752175722947,1.65856371,676.51,676.38,0.98563723]
[1752175723148,1.65856371,676.51,676.39,0.98563723]
[1752175723342,1.65856371,676.51,676.4,0.98563723]
[1752175723646,1.65856371,676.51,676.41,0.98563723]
[1752175723844,1.65856371,676.5,676.42,0.98563723]
[1752175724048,1.65856371,676.5,676.43,0.98563723]
[1752175724250,1.65856371,676.5,676.44,0.98563723]
[1752175724549,1.65856371,676.5,676.45,0.98563723]
[1752175724849,1.65856371,676.5,676.46,0.98563723]
[1752175725050,1.65856371,676.5,676.47,0.98563723]
[1752175725245,1.65856371,676.5,676.48,0.98563723]
[1752175725449,1.65856371,676.5,676.49,0.98563723]
[1752175726144,1.65886103,676.5,676.49,0.98563723]
[1752175727949,2.21315372,676.6,676.49,0.98563723]
[1752175728152,2.21315372,676.62,676.5,0.98563723]
[1752175728352,2.21315372,676.62,676.51,0.98589456]
[1752175728555,2.21315372,676.62,676.24,1.208]
[1752175728850,1.65897018,676.49,676.25,0.9861397]
[1752175729050,1.65897018,676.49,676.26,0.9861397]
[1752175729352,1.65897018,676.49,676.27,0.9861397]
[1752175729549,1.65897018,676.49,676.28,0.9861397]
[1752175729754,1.65897018,676.49,676.29,0.9861397]
[1752175729954,1.65897018,676.49,676.3,0.9861397]
[1752175730251,1.65897018,676.49,676.31,0.9861397]
[1752175730456,1.65897018,676.49,676.32,0.9861397]
[1752175730754,1.65897018,676.49,676.33,0.9861397]
[1752175730954,1.65897018,676.49,676.34,0.9861397]
[1752175731254,1.65897018,676.48,676.35,0.9861397]
[1752175731451,1.65897018,676.48,676.36,0.9861397]
[1752175731755,1.65897018,676.48,676.37,0.9861397]
[1752175731952,1.65897018,676.48,676.38,0.9861397]
[1752175732156,1.65897018,676.48,676.39,0.9861397]
[1752175732352,1.65897018,676.48,676.4,0.9861397]
[1752175732555,1.65897018,676.48,676.41,0.9861397]
[1752175732756,1.65897018,676.48,676.42,0.9861397]
[1752175732956,1.65897018,676.49,676.43,0.9861397]
[1752175733258,1.65897018,676.48,676.44,0.9861397]
[1752175733559,1.65897018,676.48,676.1,0.257191]
[1752175733759,1.65897018,676.48,676.29,1.521]
[1752175733960,1.65897018,676.43,676.3,0.98606132]
[1752175734253,1.65897018,676.43,676.31,0.98606132]
[1752175734456,1.65897018,676.43,676.32,0.98606132]
[1752175734658,1.65897018,676.43,676.33,0.98606132]
[1752175734858,1.65897018,676.43,676.34,0.98606132]
[1752175735057,1.65897018,676.43,676.35,0.98606132]
[1752175735255,1.65897018,676.43,676.36,0.98606132]
[1752175735460,1.65897018,676.43,676.37,0.98606132]
[1752175735760,1.65897018,676.43,676.29,1.521]
[1752175735761,1.65897018,676.43,676.38,0.98606132]
[1752175735955,1.65897018,676.43,676.39,0.98606132]
[1752175736259,1.65897018,676.43,676.4,0.98606132]
[1752175736460,1.65897018,676.43,676.41,0.98606132]
[1752175736655,1.65897018,676.43,676.29,1.521]
[1752175736656,1.65897018,676.45,676.42,0.98606132]
[1752175736855,1.65897018,676.46,676.43,0.98606132]
[1752175737059,1.65897018,676.46,676.44,0.98606132]
[1752175737359,1.65897018,676.46,676.45,0.98606132]
[1752175739060,2.21315372,676.59,676.45,0.98606132]
[1752175739360,2.21315372,676.59,676.46,0.98606132]
[1752175739661,2.21315372,676.59,676.47,0.98585039]
[1752175739861,2.21315372,676.6,676.29,1.521]
[1752175740057,1.65925685,676.46,676.3,0.98585039]
[1752175740265,1.65925685,676.46,676.31,0.98585039]
[1752175740459,1.65925685,676.46,676.32,0.98585039]
[1752175740762,1.65925685,676.46,676.33,0.98585039]
[1752175740962,1.65925685,676.46,676.34,0.98585039]
[1752175741161,1.65925685,676.46,676.35,0.98585039]
[1752175741360,1.65925685,676.47,676.36,0.98585039]
[1752175741564,1.65925685,676.47,676.37,0.98585039]
[1752175741858,1.65925685,676.47,676.29,1.521]
[1752175741859,1.65925685,676.46,676.38,0.98585039]
[1752175742063,1.65925685,676.46,676.39,0.98585039]
[1752175742257,1.65925685,676.46,676.4,0.98585039]
[1752175742460,1.65925685,676.46,676.41,0.98585039]
[1752175742659,1.65925685,676.46,676.42,0.98585039]
[1752175742861,1.65925685,676.45,676.43,0.98585039]
[1752175743066,1.65925685,676.45,676.44,0.98585039]
[1752175743765,2.21315372,676.59,676.44,0.98585039]
[1752175743966,2.21315372,676.59,676.29,1.521]
[1752175744261,1.65904078,676.45,676.3,0.98550266]
[1752175744561,1.65904078,676.43,676.31,0.98550266]
[1752175744765,1.65904078,676.43,676.32,0.98550266]
[1752175745065,1.65904078,676.44,676.33,0.98550266]
[1752175745262,1.65904078,676.44,676.34,0.98550266]
[1752175745461,1.65904078,676.44,676.35,0.98550266]
[1752175745661,1.65904078,676.44,676.36,0.98550266]
[1752175745861,1.65904078,676.44,676.37,0.98550266]